bitfinex/quotes_BTCUSD_20250326
["timestamp","ask_amount","ask_price","bid_price","bid_amount"]
[1743010636650,0.71353247,86786.0,86785.0,7.9e-07]
[1743010636867,0.71753247,86786.0,86785.0,7.9e-07]
[1743010637514,0.71753247,86786.0,86785.0,0.00033939]
[1743010638106,5.68727447,86786.0,86785.0,0.00033939]
[1743010638458,5.44786447,86786.0,86785.0,0.00033939]
[1743010639856,3.91678847,86786.0,86785.0,0.00033939]
[1743010642981,3.89873295,86786.0,86785.0,3.9e-07]
[1743010643254,0.84539695,86786.0,86785.0,3.9e-07]
[1743010645627,0.8599378,86786.0,86785.0,3.9e-07]
[1743010645841,0.8849378,86786.0,86785.0,3.9e-07]
[1743010646263,0.90299491,86786.0,86785.0,3.9e-07]
[1743010647781,0.74753406,86786.0,86785.0,3.9e-07]
[1743010648032,0.85821406,86786.0,86785.0,3.9e-07]
[1743010650243,0.85838336,86786.0,86785.0,3.9e-07]
[1743010652896,0.84032625,86786.0,86785.0,3.9e-07]
[1743010653128,0.85838215,86786.0,86785.0,3.9e-07]
[1743010654089,0.85810215,86786.0,86785.0,3.9e-07]
[1743010656157,0.72980215,86786.0,86785.0,3.9e-07]
[1743010656418,0.72984215,86786.0,86785.0,3.9e-07]
[1743010656715,0.28960215,86786.0,86785.0,3.9e-07]
[1743010656922,0.72980215,86786.0,86785.0,3.9e-07]
[1743010657655,0.72480215,86786.0,86785.0,3.9e-07]
[1743010658127,0.72980215,86786.0,86785.0,3.9e-07]
[1743010658628,0.80730215,86786.0,86785.0,3.9e-07]
[1743010658894,0.80330215,86786.0,86785.0,3.9e-07]
[1743010659161,0.80730215,86786.0,86785.0,3.9e-07]
[1743010659431,0.71430215,86786.0,86785.0,3.9e-07]
[1743010659718,0.85446215,86786.0,86785.0,3.9e-07]
[1743010661698,0.83640625,86786.0,86785.0,3.9e-07]
[1743010664987,0.85446207,86786.0,86785.0,3.9e-07]
[1743010667113,0.72976207,86786.0,86785.0,3.9e-07]
[1743010667278,0.58960207,86786.0,86785.0,3.9e-07]
[1743010667433,0.72920207,86786.0,86785.0,3.9e-07]
[1743010667636,0.58960207,86786.0,86785.0,3.9e-07]
[1743010667848,0.72916207,86786.0,86785.0,3.9e-07]
[1743010668050,0.42912207,86786.0,86785.0,0.07660039]
[1743010668253,0.04762907,86786.0,86785.0,0.08426043]
[1743010668467,0.04762907,86786.0,86785.0,0.07660039]
[1743010668701,0.04762907,86786.0,86785.0,0.35385439]
[1743010668903,0.23361807,86786.0,86785.0,0.35385439]
[1743010669135,0.22205385,86786.0,86785.0,0.12340039]
[1743010669336,0.45250485,86786.0,86785.0,0.12340039]
[1743010669531,0.76702685,86786.0,86785.0,0.12340039]
[1743010669736,0.76702685,86786.0,86785.0,0.12440039]
[1743010669940,0.76402685,86786.0,86785.0,0.12440039]
[1743010670363,0.52205385,86786.0,86785.0,0.12540039]
[1743010670558,0.71450485,86786.0,86785.0,0.12540039]
[1743010671204,0.48405385,86786.0,86785.0,0.12540039]
[1743010671537,0.71450485,86786.0,86785.0,0.12540039]
[1743010672428,0.48405385,86786.0,86785.0,0.12540039]
[1743010672622,0.45405385,86786.0,86785.0,0.12540039]
[1743010672826,0.43599803,86786.0,86785.0,0.12540039]
[1743010673037,0.66644903,86786.0,86785.0,0.12540039]
[1743010673727,0.65642303,86786.0,86785.0,0.12540039]
[1743010674530,0.66794503,86786.0,86785.0,0.12540039]
[1743010676176,0.68599712,86786.0,86785.0,0.12540039]
[1743010678386,0.68599712,86786.0,86785.0,0.00200039]
[1743010679252,0.68399712,86786.0,86785.0,0.00100039]
[1743010679467,0.68399712,86786.0,86785.0,3.9e-07]
[1743010679682,0.68599712,86786.0,86785.0,3.9e-07]
[1743010679889,0.57403412,86786.0,86785.0,3.9e-07]
[1743010680038,0.57303412,86786.0,86785.0,3.9e-07]
[1743010680460,0.57403412,86786.0,86785.0,3.9e-07]
[1743010681232,0.57403412,86786.0,86756.0,0.230529]
[1743010681233,0.242035,86764.0,86762.0,0.077]
[1743010681434,0.53051,86764.0,86763.0,0.00057637]
[1743010681840,0.3,86764.0,86763.0,0.00057637]
[1743010682250,0.3,86764.0,86763.0,0.24261437]
[1743010682635,0.3,86764.0,86763.0,0.24361437]
[1743010682840,0.3,86764.0,86763.0,0.24461437]
[1743010683825,0.30886229,86764.0,86763.0,0.24461437]
[1743010684031,0.3,86764.0,86763.0,0.45076016]
[1743010684257,0.3,86764.0,86763.0,0.38945522]
[1743010685210,0.3,86764.0,86763.0,0.80595522]
[1743010685211,0.31805417,86764.0,86763.0,0.80595522]
[1743010686658,0.31805417,86764.0,86763.0,0.80495522]
[1743010686999,0.31805417,86764.0,86763.0,0.8293699]
[1743010687385,0.01805417,86764.0,86763.0,0.8323699]
[1743010692131,0.01805417,86764.0,86763.0,0.8208449]
[1743010692374,0.01805417,86764.0,86763.0,0.93510254]
[1743010692792,0.10353057,86781.0,86780.0,0.37380785]
[1743010693002,0.40353057,86781.0,86780.0,0.37380785]
[1743010693219,0.40353057,86781.0,86780.0,0.38533085]
[1743010693843,0.10353057,86781.0,86780.0,0.38533085]
[1743010694052,0.10453057,86781.0,86780.0,0.38533085]
[1743010696107,0.10553057,86781.0,86780.0,0.38533085]
[1743010696652,0.10453057,86781.0,86780.0,0.38533085]
[1743010696852,0.10353057,86781.0,86780.0,0.38533085]
[1743010697559,0.01805151,86784.0,86783.0,0.241981]
[1743010702041,0.01805151,86784.0,86783.0,0.230459]
[1743010702264,0.01805151,86784.0,86783.0,0.241981]
[1743010702809,0.3001693,86786.0,86785.0,0.241976]
[1743010704089,0.40469987,86786.0,86785.0,0.241976]
[1743010705108,0.40469987,86786.0,86785.0,0.35623364]
[1743010705312,0.10469987,86786.0,86785.0,0.25651685]
[1743010708278,0.0011693,86786.0,86785.0,0.25651685]
[1743010708678,0.0011693,86786.0,86785.0,0.67301685]
[1743010711741,0.0011693,86786.0,86785.0,0.646954]
[1743010711963,0.0011693,86786.0,86785.0,0.658476]
[1743010714526,0.0011693,86786.0,86785.0,0.241976]
[1743010715915,0.01921954,86786.0,86785.0,0.241976]
[1743010721261,0.01921954,86786.0,86783.0,0.011522]
[1743010721262,0.01921954,86786.0,86783.0,0.230457]
[1743010721473,0.01921954,86786.0,86783.0,0.011522]
[1743010721677,0.01921954,86786.0,86785.0,0.230454]
[1743010722127,0.01921954,86786.0,86781.0,0.011523]
[1743010722128,0.3,86783.0,86781.0,0.230462]
[1743010722343,0.530461,86783.0,86780.0,0.2308036]
[1743010722568,0.3,86783.0,86781.0,0.230464]
[1743010722804,0.3,86783.0,86782.0,0.241985]
[1743010723310,0.0001693,86786.0,86785.0,0.241976]
[1743010725186,0.0001693,86786.0,86781.0,0.230464]
[1743010725393,0.0116913,86786.0,86782.0,0.230462]
[1743010725634,0.230455,86785.0,86782.0,0.230462]
[1743010725803,0.01822003,86786.0,86783.0,0.241981]
[1743010726023,0.01822003,86786.0,86784.0,0.011522]
[1743010726374,0.01922003,86786.0,86785.0,0.241976]
[1743010726712,0.01822003,86786.0,86785.0,0.241976]
[1743010726930,0.01922003,86786.0,86785.0,0.241976]
[1743010727867,0.01922003,86786.0,86785.0,0.230454]
[1743010728073,0.01922003,86786.0,86784.0,0.241978]
[1743010728289,0.01822003,86786.0,86785.0,0.230454]
[1743010728699,0.01922003,86786.0,86785.0,0.241976]
[1743010729072,0.01822003,86786.0,86785.0,0.241976]
[1743010729298,0.01922003,86786.0,86785.0,0.241976]
[1743010729933,0.01822003,86786.0,86785.0,0.241976]
[1743010730154,0.01922003,86786.0,86785.0,0.241976]
[1743010731361,0.01922003,86786.0,86785.0,0.33995506]
[1743010731576,0.0011693,86786.0,86785.0,0.320276]
[1743010735252,0.0011693,86786.0,86785.0,0.38291685]
[1743010735671,0.0011693,86786.0,86785.0,0.79941685]
[1743010736501,0.01921796,86786.0,86785.0,0.79941685]
[1743010739448,0.01921796,86786.0,86785.0,1.39797685]
[1743010740676,0.01821796,86786.0,86785.0,1.40097685]
[1743010741099,0.01821796,86786.0,86785.0,1.40397685]
[1743010741440,0.01821796,86786.0,86785.0,1.263036]
[1743010742808,0.0001693,86786.0,86785.0,1.263036]
[1743010743022,0.2306203,86786.0,86785.0,0.60456]
[1743010743471,0.0001693,86786.0,86785.0,0.616082]
[1743010743698,0.0001693,86786.0,86785.0,0.846536]
[1743010744039,0.0001693,86786.0,86785.0,0.843536]
[1743010744247,0.0001693,86786.0,86785.0,0.244976]
[1743010744793,0.0001693,86786.0,86785.0,0.241976]
[1743010745028,0.0001693,86786.0,86785.0,0.243976]
[1743010746106,0.0001693,86786.0,86785.0,0.245976]
[1743010746371,0.01821922,86786.0,86785.0,0.245976]
[1743010747316,0.01821922,86786.0,86785.0,0.2463148]
[1743010747872,2.2e-07,86786.0,86785.0,0.91611329]
[1743010748153,6e-07,86787.0,86786.0,0.25651385]
[1743010748399,6e-07,86787.0,86786.0,0.37077149]
[1743010748596,6e-07,86787.0,86786.0,0.38235588]
[1743010748803,6e-07,86787.0,86786.0,0.46145588]
[1743010749010,6e-07,86787.0,86786.0,0.57571352]
[1743010749214,6e-07,86787.0,86786.0,0.56412913]
[1743010749638,6e-07,86787.0,86786.0,0.57544742]
[1743010750721,0.01804828,86787.0,86786.0,0.58044742]
[1743010750956,0.01804828,86787.0,86786.0,0.58544742]
[1743010752522,6e-07,86787.0,86786.0,0.99062913]
[1743010754065,6e-07,86787.0,86786.0,1.00237663]
[1743010755930,0.01804795,86787.0,86786.0,1.00237663]
[1743010756170,0.01804795,86787.0,86786.0,0.87637149]
[1743010756411,0.01804795,86787.0,86786.0,1.01077149]
[1743010756657,0.01804795,86787.0,86786.0,0.87637149]
[1743010756918,0.01804795,86787.0,86786.0,0.802913]
[1743010757160,0.24849695,86787.0,86786.0,0.4265]
[1743010757411,0.56001895,86787.0,86786.0,0.01]
[1743010757644,0.32957223,86787.0,86786.0,0.01]
[1743010757865,0.32957223,86787.0,86786.0,0.251973]
[1743010758335,0.02957223,86787.0,86786.0,0.246973]
[1743010758571,0.02957223,86787.0,86786.0,0.241973]
[1743010758832,0.02957223,86787.0,86786.0,0.243973]
[1743010759868,0.01804795,86787.0,86786.0,0.33256087]
[1743010760150,0.01804795,86787.0,86786.0,1.46183851]
[1743010761045,0.01804795,86787.0,86786.0,1.46083851]
[1743010761290,0.000339,86808.0,86807.0,0.011519]
[1743010761460,0.000339,86808.0,86807.0,0.92455692]
[1743010761687,0.000339,86808.0,86807.0,1.08561113]
[1743010762302,0.000339,86808.0,86807.0,0.80799585]
[1743010762679,0.000339,86808.0,86807.0,0.80840282]
[1743010762898,0.000339,86808.0,86807.0,0.6961541]
[1743010763095,0.000339,86808.0,86807.0,0.41690697]
[1743010763310,0.242251,86808.0,86807.0,0.41690697]
[1743010763518,0.243251,86808.0,86807.0,0.41690697]
[1743010763751,0.543251,86808.0,86807.0,0.41690697]
[1743010763957,0.542251,86808.0,86807.0,0.41690697]
[1743010764160,0.542251,86808.0,86807.0,0.42090697]
[1743010764379,0.542251,86808.0,86807.0,0.42490697]
[1743010764814,0.542251,86808.0,86807.0,0.42090697]
[1743010765317,0.542251,86808.0,86807.0,0.42390697]
[1743010765497,0.542251,86808.0,86807.0,0.00740697]
[1743010765996,0.896803,86808.0,86807.0,0.00740697]
[1743010766674,0.896803,86808.0,86807.0,0.00040697]
[1743010767714,0.542251,86808.0,86807.0,0.00040697]
[1743010768423,0.300339,86808.0,86807.0,0.26770707]
[1743010768889,0.300339,86808.0,86807.0,0.02579207]
[1743010769119,0.530732,86808.0,86807.0,0.00040697]
[1743010769331,0.300339,86808.0,86807.0,0.00040697]
[1743010769792,0.300339,86808.0,86807.0,0.23080297]
[1743010770046,0.300339,86808.0,86807.0,0.24232197]
[1743010771632,0.300339,86808.0,86807.0,0.24432197]
[1743010772041,0.300339,86808.0,86807.0,0.00240697]
[1743010772253,0.300339,86808.0,86807.0,0.00440697]
[1743010773193,0.300339,86808.0,86807.0,0.23480297]
[1743010773438,0.300339,86808.0,86807.0,0.00440697]
[1743010773855,0.530732,86808.0,86807.0,0.00440697]
[1743010774390,0.542251,86808.0,86807.0,0.00440697]
[1743010775250,1.459857,86808.0,86807.0,0.00440697]
[1743010775477,0.542251,86808.0,86807.0,0.00440697]
[1743010776150,1.188694,86808.0,86807.0,0.00440697]
[1743010776507,1.188694,86808.0,86807.0,0.00040697]
[1743010776956,0.543251,86808.0,86807.0,0.00040697]
[1743010777609,0.301339,86808.0,86807.0,0.07187307]
[1743010777863,0.301339,86808.0,86807.0,0.24232197]
[1743010778315,0.300339,86808.0,86807.0,0.24232197]
[1743010779463,0.300339,86808.0,86807.0,0.24432197]
[1743010779714,0.300339,86808.0,86807.0,0.24632197]
[1743010780428,0.300339,86808.0,86807.0,0.35807162]
[1743010780875,0.000339,86808.0,86807.0,0.77457162]
[1743010781116,0.000339,86808.0,86807.0,0.96902926]
[1743010782430,0.000339,86808.0,86807.0,0.87182046]
[1743010783559,0.000339,86808.0,86807.0,0.89504693]
[1743010786276,0.01838307,86808.0,86807.0,0.89504693]
[1743010786978,0.000339,86808.0,86807.0,0.89504693]
[1743010787415,0.000339,86808.0,86807.0,0.94134693]
[1743010787737,0.000339,86808.0,86807.0,1.05560457]
[1743010788361,0.000339,86808.0,86807.0,1.05360457]
[1743010788973,0.01838256,86808.0,86807.0,1.05160457]
[1743010789201,0.01838256,86808.0,86807.0,1.05560457]
[1743010789640,0.01838256,86808.0,86807.0,0.94534693]
[1743010792664,0.000339,86808.0,86807.0,0.94534693]
[1743010794726,0.000339,86808.0,86807.0,1.54370693]
[1743010796158,0.06295129,86879.0,86868.0,0.230234]
[1743010796372,0.06295129,86879.0,86868.0,0.241745]
[1743010796592,0.06295129,86879.0,86868.0,0.25628585]
[1743010796806,0.01144274,86880.0,86868.0,0.25628585]
[1743010797262,0.01144274,86880.0,86868.0,0.241745]
[1743010797473,0.006,86869.0,86868.0,0.241745]
[1743010797696,0.006,86869.0,86868.0,0.24187544]
[1743010798363,0.006,86869.0,86868.0,0.34271953]
[1743010799090,0.006,86869.0,86868.0,0.24487544]
[1743010799514,0.002,86869.0,86868.0,0.24487544]
[1743010799715,0.002,86869.0,86868.0,0.45657393]
[1743010799944,0.002,86869.0,86868.0,0.45857393]
[1743010800397,0.002,86869.0,86868.0,0.59265393]
[1743010800630,0.002,86869.0,86868.0,0.70691157]
[1743010801274,0.01803311,86875.0,86874.0,0.02605085]
[1743010801275,5.1e-07,86875.0,86874.0,0.02605085]
[1743010801496,5.1e-07,86875.0,86874.0,0.14260995]
[1743010801744,0.0001694,86895.0,86894.0,0.241673]
[1743010803799,0.2303314,86895.0,86894.0,0.002]
[1743010804019,0.3001694,86895.0,86894.0,0.002]
[1743010804498,0.3001694,86895.0,86894.0,0.005]
[1743010806753,0.3116774,86895.0,86894.0,0.005]
[1743010808956,2.4303124,86895.0,86894.0,0.005]
[1743010809759,0.011509,86881.0,86875.0,0.6585624]
[1743010809960,0.01151,86879.0,86875.0,0.0003384]
[1743010810188,0.541723,86876.0,86875.0,0.0003384]
[1743010810760,0.763325,86876.0,86875.0,0.0003384]
[1743010811156,0.763325,86876.0,86875.0,0.0043384]
[1743010811565,0.541723,86876.0,86875.0,0.0003384]
[1743010812804,0.541723,86876.0,86875.0,0.0023384]
[1743010813066,0.541723,86876.0,86875.0,0.0053384]
[1743010813271,0.541723,86876.0,86875.0,0.0033384]
[1743010813473,0.541723,86876.0,86875.0,0.0003384]
[1743010815098,1.34306429,86876.0,86875.0,0.0003384]
[1743010815299,1.47181029,86876.0,86875.0,0.0003384]
[1743010815698,1.48984427,86876.0,86875.0,0.0003384]
[1743010816947,1.23541627,86876.0,86875.0,0.0003384]
[1743010817120,0.94346527,86876.0,86875.0,0.0003384]
[1743010817541,0.56847027,86876.0,86875.0,0.0003384]
[1743010818892,2.67924027,86876.0,86875.0,0.0003384]
[1743010819094,0.32954398,86876.0,86875.0,0.0003384]
[1743010819388,0.55992618,86876.0,86875.0,0.0003384]
[1743010820990,0.88041718,86876.0,86875.0,0.0003384]
[1743010821405,0.55992618,86876.0,86875.0,0.0003384]
[1743010822787,0.5418922,86876.0,86875.0,0.0003384]
[1743010823001,0.8834032,86876.0,86875.0,0.0003384]
[1743010823214,0.5418922,86876.0,86875.0,0.0003384]
[1743010823878,0.9105142,86876.0,86875.0,0.0003384]
[1743010824089,0.5418922,86876.0,86875.0,0.0003384]
[1743010824516,0.7141692,86876.0,86875.0,0.0003384]
[1743010825141,0.5418922,86876.0,86875.0,0.0003384]
[1743010825499,0.7998522,86876.0,86875.0,0.0003384]
[1743010825721,0.81788574,86876.0,86875.0,0.0003384]
[1743010825919,0.72968574,86876.0,86875.0,0.0003384]
[1743010828773,0.81098574,86876.0,86875.0,0.0003384]
[1743010830020,0.64122574,86876.0,86875.0,0.0003384]
[1743010830251,5.61096774,86876.0,86875.0,0.0003384]
[1743010830497,4.08342374,86876.0,86875.0,0.0003384]
[1743010830712,3.95694974,86876.0,86875.0,0.0003384]
[1743010830950,0.86064574,86876.0,86875.0,0.0003384]
[1743010832721,0.5418922,86876.0,86875.0,0.0003384]
[1743010833182,0.5428922,86876.0,86875.0,0.0003384]
[1743010833843,0.5418922,86876.0,86875.0,0.0003384]
[1743010834864,0.5428922,86876.0,86875.0,0.0003384]
[1743010835737,0.56092564,86876.0,86875.0,0.0003384]
[1743010835964,0.55992564,86876.0,86875.0,0.0003384]
[1743010836261,0.56092564,86876.0,86875.0,0.0003384]
[1743010837130,0.66651564,86876.0,86875.0,0.0003384]
[1743010841591,1.48402164,86876.0,86875.0,0.0003384]
[1743010842543,1.29481164,86876.0,86875.0,0.0003384]
[1743010842781,1.2767782,86876.0,86875.0,0.0003384]
[1743010842961,0.9412222,86876.0,86875.0,0.0003384]
[1743010843406,0.5428922,86876.0,86875.0,0.0003384]
[1743010845591,0.9053152,86876.0,86875.0,0.0003384]
[1743010845780,0.5428922,86876.0,86875.0,0.0003384]
[1743010846249,0.56092557,86876.0,86875.0,0.0003384]
[1743010846703,0.54941557,86876.0,86875.0,0.0003384]
[1743010847772,0.31920257,86876.0,86875.0,0.0118484]
[1743010847984,0.01920257,86876.0,86875.0,0.33460425]
[1743010848408,0.01920257,86876.0,86875.0,0.35771619]
[1743010848623,0.01920257,86876.0,86875.0,0.93727383]
[1743010848842,0.01820257,86876.0,86875.0,1.05153147]
[1743010849954,0.01820257,86876.0,86875.0,1.05753147]
[1743010851205,0.01820257,86876.0,86875.0,1.06253147]
[1743010852619,0.0001692,86876.0,86875.0,1.06253147]
[1743010855589,0.0001692,86876.0,86875.0,0.94827383]
[1743010855813,0.0001692,86876.0,86875.0,0.6580534]
[1743010856031,0.01819961,86876.0,86875.0,0.4393484]
[1743010856225,0.02950355,86876.0,86875.0,0.4393484]
[1743010856413,0.02950355,86876.0,86875.0,0.6695634]
[1743010857471,0.01819961,86876.0,86875.0,0.6695634]
[1743010857684,0.01819961,86876.0,86875.0,0.68410425]
[1743010857916,0.01819961,86876.0,86875.0,0.79836189]
[1743010859271,0.01819961,86876.0,86875.0,0.6695634]
[1743010861243,0.01819961,86876.0,86875.0,0.68410425]
[1743010861896,0.0001692,86876.0,86875.0,0.87786189]
[1743010862464,2e-07,86876.0,86875.0,1.06032189]
[1743010862710,2e-07,86876.0,86875.0,1.17457953]
[1743010863077,2e-07,86876.0,86875.0,1.1908592]
[1743010863431,2e-07,86876.0,86875.0,1.1848592]
[1743010863591,2e-07,86876.0,86875.0,1.16857953]
[1743010863792,2e-07,86876.0,86875.0,1.16957953]
[1743010863995,2e-07,86876.0,86875.0,1.17557953]
[1743010864216,2e-07,86876.0,86875.0,1.16957953]
[1743010864404,2e-07,86876.0,86875.0,1.17557953]
[1743010864837,2e-07,86876.0,86875.0,1.17457953]
[1743010865021,2e-07,86876.0,86875.0,1.18057953]
[1743010865220,2e-07,86876.0,86875.0,1.17457953]
[1743010865578,2e-07,86876.0,86875.0,1.18057953]
[1743010866787,2e-07,86876.0,86875.0,1.17557953]
[1743010866983,2e-07,86876.0,86875.0,1.18057953]
[1743010867732,0.002,86899.0,86894.0,0.241673]
[1743010867950,0.002,86899.0,86894.0,0.91417149]
[1743010868159,0.002,86899.0,86898.0,0.246661]
[1743010868375,0.002,86929.0,86928.0,0.24007912]
[1743010868589,0.002,86929.0,86928.0,0.25461997]
[1743010868805,0.002,86929.0,86928.0,0.88674441]
[1743010869022,0.0200196,86929.0,86928.0,0.88674441]
[1743010869413,0.0200196,86929.0,86928.0,0.88715138]
[1743010869632,0.0200196,86929.0,86928.0,0.41690657]
[1743010870074,0.0315226,86929.0,86928.0,0.41690657]
[1743010870834,0.0315226,86929.0,86928.0,0.42190657]
[1743010871043,0.0315226,86929.0,86928.0,0.41690657]
[1743010871249,0.0315226,86929.0,86928.0,0.00040697]
[1743010871250,0.7137356,86929.0,86928.0,0.00040697]
[1743010871455,0.7137356,86929.0,86928.0,0.00340697]
[1743010871603,0.3315226,86929.0,86928.0,0.00340697]
[1743010871832,0.946555,86929.0,86928.0,0.00340697]
[1743010872030,0.749293,86929.0,86928.0,0.00640697]
[1743010872231,0.313503,86929.0,86928.0,0.00640697]
[1743010872639,0.90874,86929.0,86928.0,0.00340697]
[1743010872960,0.002,86929.0,86928.0,0.01190997]
[1743010873163,0.002,86929.0,86928.0,0.00040697]
[1743010873753,0.002,86929.0,86928.0,0.13452612]
[1743010873971,0.002,86929.0,86928.0,0.66758386]
[1743010874187,0.002,86929.0,86928.0,0.66528336]
[1743010874407,0.002,86929.0,86928.0,0.66928336]
[1743010874634,0.002,86929.0,86928.0,0.44295042]
[1743010876210,0.002,86929.0,86928.0,0.45195042]
[1743010876474,0.02001875,86929.0,86928.0,0.44795042]
[1743010876666,0.02001875,86929.0,86928.0,0.45295042]
[1743010876928,0.02001875,86929.0,86928.0,0.79728306]
[1743010877853,0.02018815,86929.0,86928.0,0.9115407]
[1743010880293,0.02018815,86929.0,86928.0,0.42690657]
[1743010880534,0.02018815,86929.0,86928.0,1.26608457]
[1743010880777,0.02018815,86929.0,86928.0,1.47188306]
[1743010881037,1.5e-07,86929.0,86928.0,1.47188306]
[1743010883527,1.5e-07,86929.0,86928.0,1.47688306]
[1743010883731,1.5e-07,86932.0,86931.0,0.24657]
[1743010883944,1.5e-07,86932.0,86931.0,0.42436849]
[1743010884534,1.5e-07,86932.0,86931.0,0.94756809]
[1743010884777,0.0001694,86956.0,86954.0,0.32170764]
[1743010884990,0.0001694,86956.0,86954.0,0.95593939]
[1743010885439,0.0001694,86956.0,86954.0,0.97048024]
[1743010885659,0.0001694,86956.0,86954.0,0.92013939]
[1743010885882,0.2301704,86956.0,86954.0,0.41649945]
[1743010886090,0.2301704,86956.0,86940.0,0.011502]
[1743010886091,0.0115,86949.0,86940.0,0.011502]
[1743010886305,0.51816294,86950.0,86946.0,0.230027]
[1743010886564,0.0115,86952.0,86945.0,0.241528]
[1743010886788,0.0115,86952.0,86941.0,0.011502]
[1743010887002,0.011502,86939.0,86938.0,0.41649945]
[1743010887213,0.230043,86940.0,86938.0,0.41649945]
[1743010887435,0.230046,86939.0,86938.0,0.41649945]
[1743010887654,0.230051,86937.0,86933.0,0.230061]
[1743010887839,0.01174233,86939.0,86934.0,0.011502]
[1743010888037,0.530045,86940.0,86937.0,0.230049]
[1743010888293,0.3,86940.0,86938.0,0.230048]
[1743010888475,0.3,86940.0,86938.0,0.235048]
[1743010888677,0.31792091,86940.0,86938.0,0.235048]
[1743010888894,0.01801841,86940.0,86939.0,0.241548]
[1743010889665,0.230034,86944.0,86941.0,0.230038]
[1743010890069,0.230022,86949.0,86945.0,0.011501]
[1743010890327,0.0891,86954.0,86945.0,0.011501]
[1743010890328,0.241511,86952.0,86945.0,0.011501]
[1743010890565,0.3,86949.0,86947.0,0.230024]
[1743010890767,0.31801752,86949.0,86948.0,0.241523]
[1743010891757,0.241528,86946.0,86945.0,0.002]
[1743010891963,0.541528,86946.0,86945.0,0.003]
[1743010892172,1.252445,86946.0,86945.0,0.003]
[1743010892370,2.469167,86946.0,86945.0,0.003]
[1743010892571,3.22053,86946.0,86945.0,0.003]
[1743010892878,3.522562,86946.0,86945.0,0.003]
[1743010893061,2.922504,86946.0,86945.0,0.003]
[1743010893262,2.668493,86946.0,86945.0,0.003]
[1743010893466,2.668493,86946.0,86928.0,0.00074557]
[1743010893467,0.241575,86929.0,86928.0,0.00074557]
[1743010893662,0.799236,86929.0,86928.0,0.00074557]
[1743010894346,3.62459,86929.0,86928.0,0.00074557]
[1743010894574,3.64608047,86929.0,86928.0,0.00074557]
[1743010895162,3.64608047,86929.0,86928.0,0.00174557]
[1743010895784,3.66410597,86929.0,86928.0,0.00174557]
[1743010895998,3.59861054,86929.0,86928.0,0.00174557]
[1743010896219,3.35397454,86929.0,86928.0,0.00174557]
[1743010896389,3.02896054,86929.0,86928.0,0.00174557]
[1743010896603,3.03096054,86929.0,86928.0,0.00174557]
[1743010897518,2.83169154,86929.0,86928.0,0.00174557]
[1743010898007,1.96148354,86929.0,86928.0,0.00174557]
[1743010898223,0.57041554,86929.0,86928.0,0.00174557]
[1743010898424,1.07967154,86929.0,86928.0,0.00174557]
[1743010898844,1.00981854,86929.0,86928.0,0.00174557]
[1743010899053,0.0200255,86929.0,86928.0,0.00174557]
[1743010899286,0.0315285,86929.0,86928.0,0.00174557]
[1743010899683,0.0295285,86929.0,86928.0,0.00074557]
[1743010900101,0.0305285,86929.0,86928.0,0.00074557]
[1743010900348,0.0190255,86929.0,86928.0,0.24232357]
[1743010900578,0.0180255,86929.0,86928.0,0.24232357]
[1743010900798,0.0180255,86929.0,86928.0,0.29501623]
[1743010900975,0.0180255,86929.0,86928.0,0.24532357]
[1743010901192,0.0180255,86929.0,86928.0,0.73982302]
[1743010901395,0.230022,86948.0,86944.0,0.230032]
[1743010901597,0.3,86946.0,86942.0,0.230036]
[1743010901838,0.23003,86945.0,86942.0,0.230036]
[1743010902041,0.011502,86940.0,86928.0,0.65031902]
[1743010902250,0.51819294,86940.0,86932.0,0.011503]
[1743010902449,0.51819294,86940.0,86934.0,0.230059]
[1743010902450,0.230053,86937.0,86934.0,0.230059]
[1743010902665,0.011502,86938.0,86935.0,0.230055]
[1743010903098,0.011502,86937.0,86928.0,0.41824502]
[1743010903344,0.011502,86936.0,86930.0,0.011503]
[1743010903555,0.25155229,86937.0,86933.0,0.230059]
[1743010903768,0.02150129,86937.0,86935.0,0.230055]
[1743010904184,0.02150129,86937.0,86934.0,0.011502]
[1743010904411,0.25155429,86937.0,86934.0,0.230058]
[1743010904624,0.02150129,86937.0,86934.0,0.230058]
[1743010904835,0.02150129,86936.0,86934.0,0.230058]
[1743010905215,0.02150129,86936.0,86935.0,0.230056]
[1743010905419,0.02150129,86936.0,86934.0,0.230058]
[1743010905551,0.02150129,86936.0,86935.0,0.230056]
[1743010906201,0.011501,86945.0,86938.0,0.230046]
[1743010906409,0.0001693,86946.0,86940.0,0.230043]
[1743010906665,0.0001693,86946.0,86945.0,0.23003]
[1743010906864,0.0001693,86946.0,86945.0,0.241531]
[1743010907287,0.01818676,86946.0,86945.0,0.241531]
[1743010907636,0.01818676,86946.0,86945.0,0.3392963]
[1743010908268,0.01918676,86946.0,86945.0,0.3392963]
[1743010908975,0.04068595,86946.0,86945.0,0.3392963]
[1743010909231,0.04068595,86946.0,86945.0,0.75579575]
[1743010910224,0.03968595,86946.0,86945.0,0.75579575]
[1743010910453,0.03968595,86946.0,86945.0,0.76079575]
[1743010910894,0.03968595,86946.0,86945.0,0.75879575]
[1743010911604,0.03968595,86946.0,86945.0,0.76179575]
[1743010912267,0.03968595,86946.0,86945.0,0.75879575]
[1743010912477,0.03968595,86946.0,86945.0,0.66103045]
[1743010912693,0.02166849,86946.0,86945.0,0.65803045]
[1743010913099,0.02166849,86946.0,86945.0,0.66203045]
[1743010913551,0.02166849,86946.0,86945.0,0.66603045]
[1743010913758,0.02166849,86946.0,86945.0,0.66203045]
[1743010913980,0.02166849,86946.0,86945.0,0.77628809]
[1743010914399,0.02166849,86946.0,86945.0,0.77928809]
[1743010914763,0.0001693,86946.0,86945.0,0.77928809]
[1743010915003,0.0001693,86946.0,86945.0,0.90808658]
[1743010915234,0.0001693,86946.0,86945.0,1.03328658]
[1743010915467,0.0001693,86946.0,86945.0,1.03728658]
[1743010915693,0.0001693,86946.0,86945.0,1.0449263]
[1743010915962,0.0001693,86946.0,86945.0,1.03328658]
[1743010916181,0.0001693,86946.0,86945.0,1.03828658]
[1743010917098,0.01818389,86946.0,86945.0,1.03428658]
[1743010917284,0.01818389,86946.0,86945.0,1.03928658]
[1743010917702,0.01818389,86946.0,86945.0,1.05930894]
[1743010918330,0.01818389,86946.0,86945.0,0.92502894]
[1743010918461,0.01818389,86946.0,86945.0,0.84592894]
[1743010918898,0.01818389,86946.0,86945.0,1.44340894]
[1743010919307,0.0001693,86946.0,86945.0,1.44340894]
[1743010919555,0.0181843,86946.0,86945.0,1.38780133]
[1743010920545,0.0181843,86946.0,86945.0,1.26551045]
[1743010921537,0.0181843,86946.0,86945.0,1.52838894]
[1743010922621,0.0001693,86946.0,86945.0,1.52838894]
[1743010923716,0.0001693,86946.0,86945.0,1.26551045]